bitfinex/quotes_BTCUSD_20240721
["timestamp","ask_amount","ask_price","bid_price","bid_amount"]
[1721565138711,0.14184,67061.0,67060.0,1.4360307]
[1721565139265,0.14184,67061.0,67060.0,1.4220307]
[1721565139440,0.14184,67061.0,67060.0,1.4360307]
[1721565140064,0.14184,67061.0,67060.0,1.4500307]
[1721565140268,0.14184,67061.0,67060.0,1.4360307]
[1721565140725,0.14184,67061.0,67060.0,1.67375152]
[1721565140920,0.14184,67061.0,67060.0,1.62173672]
[1721565141335,0.14184,67061.0,67060.0,1.63573672]
[1721565141738,0.14184,67061.0,67060.0,1.63572531]
[1721565142262,0.14184,67061.0,67060.0,1.63572556]
[1721565144907,0.14184,67061.0,67060.0,1.51192479]
[1721565145115,0.14184,67061.0,67060.0,1.63572682]
[1721565147154,0.14184,67061.0,67060.0,1.33748682]
[1721565147362,0.14184,67061.0,67060.0,0.15180203]
[1721565147817,0.14868517,67061.0,67060.0,0.15180203]
[1721565148023,0.14868517,67061.0,67060.0,0.59916203]
[1721565148229,0.14868517,67061.0,67060.0,0.58516203]
[1721565148635,0.14868517,67061.0,67060.0,0.58316203]
[1721565148838,0.14868517,67061.0,67060.0,0.59716203]
[1721565149076,0.14868517,67061.0,67060.0,0.58516203]
[1721565149486,0.14868517,67061.0,67060.0,0.59616203]
[1721565150248,0.14184,67061.0,67060.0,0.59616203]
[1721565150779,0.14184,67061.0,67060.0,0.89440203]
[1721565151290,0.14184,67061.0,67060.0,0.7706]
[1721565151427,0.14184,67061.0,67060.0,0.89441414]
[1721565151685,0.14184,67061.0,67060.0,0.7706]
[1721565151883,0.14184,67061.0,67060.0,0.89441246]
[1721565153541,0.290957,67061.0,67060.0,0.14881246]
[1721565153754,0.60459816,67061.0,67060.0,0.14881246]
[1721565153960,0.60459816,67061.0,67060.0,0.025]
[1721565153961,0.61143793,67061.0,67060.0,0.025]
[1721565154170,0.59603177,67061.0,67060.0,0.025]
[1721565154787,0.59603177,67061.0,67060.0,0.011]
[1721565154993,0.59703177,67061.0,67060.0,0.011]
[1721565155404,0.59703177,67061.0,67055.0,0.14913]
[1721565155405,0.0811,67059.0,67055.0,0.14913]
[1721565155581,0.0619,67058.0,67056.0,0.12383273]
[1721565155841,0.0619,67056.0,67055.0,0.14913]
[1721565156031,0.0619,67056.0,67055.0,0.27296245]
[1721565156032,0.143,67056.0,67055.0,0.27296245]
[1721565156422,0.143,67056.0,67055.0,0.12383245]
[1721565156624,0.32047991,67056.0,67055.0,0.12383245]
[1721565156845,0.29896877,67056.0,67055.0,0.12383245]
[1721565157048,0.15596877,67056.0,67050.0,0.149142]
[1721565157251,0.15596877,67056.0,67051.0,0.12384354]
[1721565157655,0.15596877,67056.0,67050.0,0.149142]
[1721565157656,0.1486,67055.0,67050.0,0.149142]
[1721565157806,0.1486,67053.0,67051.0,0.12384263]
[1721565158010,0.1486,67053.0,67050.0,0.149142]
[1721565158237,0.15543064,67052.0,67051.0,0.12384253]
[1721565158403,0.00683064,67052.0,67051.0,0.005]
[1721565158812,0.00683064,67052.0,67050.0,0.149142]
[1721565159021,0.15543064,67052.0,67051.0,0.006]
[1721565159215,0.15543064,67052.0,67051.0,0.014]
[1721565159405,0.15543064,67052.0,67051.0,0.16314]
[1721565160307,0.15543064,67052.0,67051.0,0.15714]
[1721565160613,0.15543064,67052.0,67051.0,0.15114]
[1721565160792,0.15543064,67052.0,67051.0,0.15614]
[1721565161657,0.15643064,67052.0,67051.0,0.15014]
[1721565165139,0.15643064,67052.0,67051.0,0.001]
[1721565167970,0.15643064,67052.0,67051.0,0.15014]
[1721565168804,0.15643064,67052.0,67051.0,0.14914]
[1721565169155,0.15643064,67052.0,67051.0,0.15014]
[1721565169556,0.15543064,67052.0,67051.0,0.15014]
[1721565169774,0.15643064,67052.0,67051.0,0.15014]
[1721565173397,0.15643064,67052.0,67051.0,0.27398071]
[1721565177249,0.15643064,67052.0,67051.0,0.15014]
[1721565177336,0.15643064,67052.0,67051.0,0.27398071]
[1721565180478,0.15643064,67052.0,67051.0,0.15014]
[1721565180702,0.15643064,67052.0,67051.0,0.27398071]
[1721565180881,0.15643064,67052.0,67051.0,0.15014]
[1721565181085,0.216812,67052.0,67051.0,0.27398071]
[1721565181279,0.15643064,67052.0,67051.0,0.27398071]
[1721565184498,0.15643064,67052.0,67051.0,0.12484071]
[1721565184728,0.60384264,67052.0,67051.0,0.12484071]
[1721565185202,0.60384264,67052.0,67051.0,0.12384071]
[1721565185451,0.30456764,67052.0,67051.0,0.12384071]
[1721565185685,0.15543064,67052.0,67051.0,0.12784071]
[1721565185903,0.15543064,67052.0,67051.0,0.12484071]
[1721565186145,0.00683064,67052.0,67051.0,0.002]
[1721565186351,0.00683064,67052.0,67051.0,0.57226861]
[1721565186567,0.00783064,67052.0,67051.0,0.57226861]
[1721565186977,0.00783064,67052.0,67051.0,0.57126861]
[1721565187458,0.00683064,67052.0,67051.0,0.57126861]
[1721565188085,0.00783064,67052.0,67051.0,0.57126861]
[1721565188292,0.00783064,67052.0,67051.0,0.57226861]
[1721565188710,0.00783064,67052.0,67051.0,0.57126861]
[1721565189131,0.00783064,67052.0,67051.0,0.57226861]
[1721565189338,0.00683064,67052.0,67051.0,0.44842]
[1721565189557,0.00683064,67052.0,67051.0,0.57226465]
[1721565189744,0.00783064,67052.0,67051.0,0.57326465]
[1721565190179,0.00783064,67052.0,67051.0,0.57126465]
[1721565190381,0.00783064,67052.0,67051.0,0.57226465]
[1721565190556,0.00683064,67052.0,67051.0,0.57226465]
[1721565190971,0.00783064,67052.0,67051.0,0.57226465]
[1721565191506,0.00783064,67052.0,67051.0,0.57126465]
[1721565192066,0.00783064,67052.0,67051.0,0.57226465]
[1721565192139,0.00783064,67052.0,67051.0,0.57126465]
[1721565192497,0.00783064,67052.0,67051.0,0.44742]
[1721565192699,0.00783064,67052.0,67051.0,0.57226465]
[1721565192898,0.00783064,67052.0,67051.0,0.44842]
[1721565193098,0.00783064,67052.0,67051.0,0.57126465]
[1721565193299,0.00683064,67052.0,67051.0,0.57226465]
[1721565193569,0.00783064,67052.0,67051.0,0.57226465]
[1721565194204,0.00683064,67052.0,67051.0,0.57226465]
[1721565194400,0.00867064,67052.0,67051.0,0.57226465]
[1721565195023,0.00867064,67052.0,67051.0,0.57226449]
[1721565195377,0.00867064,67052.0,67051.0,0.57126449]
[1721565195926,0.00867064,67052.0,67051.0,0.57126448]
[1721565196108,0.00867064,67052.0,67051.0,0.57226448]
[1721565196510,0.00867064,67052.0,67051.0,0.57126448]
[1721565196655,0.00867064,67052.0,67051.0,0.57226448]
[1721565197079,0.00767064,67052.0,67051.0,0.57126448]
[1721565197289,0.00767064,67052.0,67051.0,0.57226448]
[1721565197477,0.00867064,67052.0,67051.0,0.57226448]
[1721565198031,0.00867064,67052.0,67051.0,0.57299548]
[1721565198980,0.00867064,67052.0,67051.0,0.449151]
[1721565199389,0.00867064,67052.0,67051.0,0.5709954]
[1721565199625,0.00767064,67052.0,67051.0,0.5709954]
[1721565200085,0.00867064,67052.0,67051.0,0.5719954]
[1721565200477,0.00867064,67052.0,67051.0,0.5729954]
[1721565200912,0.00767064,67052.0,67051.0,0.5729954]
[1721565201129,0.00867064,67052.0,67051.0,0.5729954]
[1721565201613,0.00867064,67052.0,67051.0,0.5709954]
[1721565202507,0.00867064,67052.0,67051.0,0.57099528]
[1721565203433,0.00867064,67052.0,67051.0,0.57299528]
[1721565211252,0.0101073,67052.0,67051.0,0.57299528]
[1721565212209,0.0101073,67052.0,67051.0,0.449151]
[1721565212469,0.0101073,67052.0,67051.0,0.57299528]
[1721565212749,0.0931073,67052.0,67051.0,0.57299528]
[1721565215182,0.0931073,67052.0,67051.0,0.449151]
[1721565215374,0.0931073,67052.0,67051.0,0.57299528]
[1721565215988,0.0931073,67052.0,67051.0,0.27471528]
[1721565218270,0.35170782,67052.0,67051.0,0.12584428]
[1721565218479,0.64998282,67052.0,67051.0,0.12584661]
[1721565218888,0.35170782,67052.0,67051.0,0.12584661]
[1721565219306,0.35070782,67052.0,67051.0,0.12384661]
[1721565219451,0.35070782,67052.0,67051.0,0.12484661]
[1721565219670,0.35170782,67052.0,67051.0,0.12484661]
[1721565220307,0.1534073,67052.0,67051.0,0.12484661]
[1721565220481,0.1534073,67052.0,67051.0,0.27398661]
[1721565220482,0.0101073,67052.0,67051.0,0.27398661]
[1721565221704,0.0101073,67052.0,67051.0,0.27398474]
[1721565224204,0.0101073,67052.0,67051.0,0.12484474]
[1721565225052,0.0101073,67052.0,67051.0,0.12484734]
[1721565225916,0.0101073,67052.0,67051.0,0.12484755]
[1721565227873,0.0101073,67052.0,67051.0,0.12577155]
[1721565229288,0.50229668,67052.0,67051.0,0.12577155]
[1721565229593,0.64169668,67052.0,67051.0,0.12577155]
[1721565231615,0.64170258,67052.0,67051.0,0.12577159]
[1721565240851,0.5969193,67052.0,67051.0,0.12577159]
[1721565241045,0.64170054,67052.0,67051.0,0.12577159]
[1721565241272,0.56470054,67052.0,67051.0,0.12577159]
[1721565242097,0.67431033,67052.0,67051.0,0.12577159]
[1721565243466,0.50230054,67052.0,67051.0,0.12577159]
[1721565243691,0.20402532,67052.0,67051.0,0.12577159]
[1721565245782,0.1592443,67052.0,67051.0,0.12577159]
[1721565246862,0.1592443,67052.0,67051.0,0.1257702]
[1721565250037,0.20402497,67052.0,67051.0,0.001924]
[1721565250219,0.28292497,67052.0,67051.0,0.12577111]
[1721565251440,0.2381443,67052.0,67051.0,0.12577111]
[1721565253874,0.2381443,67052.0,67051.0,0.001924]
[1721565254085,0.2381443,67052.0,67051.0,0.12577051]
[1721565254598,0.28292686,67052.0,67051.0,0.12577051]
[1721565254772,0.2381443,67052.0,67051.0,0.12577051]
[1721565255316,0.28292686,67052.0,67051.0,0.12577051]
[1721565255932,0.39283544,67052.0,67051.0,0.12577051]
[1721565256533,0.39283675,67052.0,67051.0,0.12577088]
[1721565257116,0.28292817,67052.0,67051.0,0.12577088]
[1721565257359,0.20402817,67052.0,67051.0,0.20837088]
[1721565257579,0.1592443,67052.0,67051.0,0.20837088]
[1721565257733,0.0101073,67052.0,67051.0,0.20837088]
[1721565259346,0.0101073,67052.0,67051.0,0.65579088]
[1721565259570,0.0101073,67052.0,67051.0,0.71949088]
[1721565259861,0.0101073,67052.0,67051.0,0.595644]
[1721565260060,0.0101073,67052.0,67051.0,0.71948879]
[1721565260303,0.00184,67052.0,67051.0,0.71948879]
[1721565260477,0.01025919,67052.0,67051.0,0.71948879]
[1721565260721,0.00184,67052.0,67051.0,0.71948879]
[1721565260904,0.01025919,67052.0,67051.0,0.71948879]
[1721565263104,0.01025919,67052.0,67051.0,0.71948721]
[1721565269522,0.01025919,67052.0,67051.0,0.531944]
[1721565269738,0.01025919,67052.0,67051.0,0.65578811]
[1721565271810,0.01025919,67052.0,67051.0,0.35750811]
[1721565272750,0.01025919,67052.0,67051.0,0.233664]
[1721565272948,0.01025919,67052.0,67051.0,0.35750942]
[1721565273589,0.01025919,67052.0,67051.0,0.20836942]
[1721565274003,0.01025919,67052.0,67051.0,0.12576942]
[1721565275974,0.01025919,67052.0,67051.0,0.12577004]
[1721565276621,0.30429699,67052.0,67051.0,0.12577004]
[1721565276843,0.42907426,67052.0,67051.0,0.12577004]
[1721565278825,0.4514629,67052.0,67051.0,0.12577004]
[1721565278984,0.38429699,67052.0,67051.0,0.12577004]
[1721565279217,0.45146581,67052.0,67051.0,0.12577004]
[1721565280993,0.36936501,67052.0,67051.0,0.12577004]
[1721565281424,0.66764001,67052.0,67051.0,0.12577004]
[1721565282362,0.66762671,67052.0,67051.0,0.001924]
[1721565282577,0.66762671,67052.0,67051.0,0.1257767]
[1721565283420,0.66762671,67052.0,67051.0,0.001924]
[1721565284055,0.78436274,67052.0,67051.0,0.001924]
[1721565284243,0.71720722,67052.0,67051.0,0.001924]
[1721565285092,1.01548222,67052.0,67051.0,0.001924]
[1721565286977,0.89874619,67052.0,67051.0,0.001924]
[1721565289458,0.81874619,67052.0,67051.0,0.001924]
[1721565292749,0.75594619,67052.0,67051.0,0.001924]
[1721565296278,0.80070195,67052.0,67051.0,0.001924]
[1721565298436,0.75594619,67052.0,67051.0,0.001924]
[1721565298708,0.80070091,67052.0,67051.0,0.001924]
[1721565300279,0.80070091,67052.0,67051.0,0.12577644]
[1721565300497,0.80070091,67052.0,67051.0,0.12577652]
[1721565300858,0.75594619,67052.0,67051.0,0.12577652]
[1721565301115,0.75594619,67052.0,67051.0,0.001924]
[1721565301372,0.80069975,67052.0,67051.0,0.12577645]
[1721565304475,0.80069975,67052.0,67051.0,0.12577675]
[1721565304476,0.80069913,67052.0,67051.0,0.12577675]
[1721565306169,0.98251527,67052.0,67051.0,0.12577675]
[1721565306374,0.98251527,67052.0,67051.0,0.001924]
[1721565306375,1.37363733,67052.0,67051.0,0.001924]
[1721565306637,1.48553078,67052.0,67051.0,0.001924]
[1721565306862,1.37363733,67052.0,67051.0,0.001924]
[1721565307103,1.37263733,67052.0,67051.0,0.001924]
[1721565307345,1.37463733,67052.0,67051.0,0.002924]
[1721565308354,1.37263733,67052.0,67051.0,0.001924]
[1721565309406,1.48449408,67052.0,67051.0,0.000924]
[1721565309779,1.48549408,67052.0,67051.0,0.001924]
[1721565310035,1.48949408,67052.0,67051.0,0.002924]
[1721565310531,1.48649408,67052.0,67051.0,0.001924]
[1721565310760,1.49048603,67052.0,67051.0,0.002924]
[1721565311234,1.48648603,67052.0,67051.0,0.001924]
[1721565311685,1.49048603,67052.0,67051.0,0.002924]
[1721565312718,1.48848603,67052.0,67051.0,0.001924]
[1721565312931,1.48448603,67052.0,67051.0,0.000924]
[1721565313137,1.48448603,67052.0,67051.0,0.001924]
[1721565313138,1.53548603,67052.0,67051.0,0.001924]
[1721565313343,1.56148603,67052.0,67051.0,0.002924]
[1721565313841,2.05530268,67052.0,67051.0,0.002924]
[1721565314000,2.3033,67052.0,67051.0,0.002924]
[1721565314203,2.45157925,67052.0,67051.0,0.001924]
[1721565314417,2.44228733,67052.0,67051.0,0.001924]
[1721565314638,2.74985507,67052.0,67051.0,1e-06]
[1721565314841,2.033489,67049.0,67048.0,0.000924]
[1721565315093,2.49486038,67049.0,67048.0,0.000924]
[1721565316181,2.64569009,67049.0,67048.0,0.000924]
[1721565316392,2.49486038,67049.0,67048.0,0.000924]
[1721565317028,2.49956764,67049.0,67048.0,0.001924]
[1721565317233,2.66321013,67049.0,67048.0,0.001924]
[1721565317898,2.36492113,67049.0,67048.0,0.001924]
[1721565318069,2.37892113,67049.0,67048.0,0.001924]
[1721565320166,2.36962821,67049.0,67048.0,0.001924]
[1721565320375,2.40231432,67049.0,67048.0,0.001924]
[1721565321875,2.70060332,67049.0,67048.0,0.001924]
[1721565322754,2.68660332,67049.0,67048.0,0.000924]
[1721565322997,2.70060332,67049.0,67048.0,0.001924]
[1721565323441,2.67731038,67049.0,67048.0,0.000924]
[1721565323672,2.68660349,67049.0,67048.0,0.000924]
[1721565323895,2.68660349,67049.0,67048.0,0.001924]
[1721565323896,2.70060349,67049.0,67048.0,0.001924]
[1721565324098,2.68660349,67049.0,67048.0,0.001924]
[1721565324764,2.69860349,67049.0,67048.0,0.002924]
[1721565325229,2.83233609,67049.0,67048.0,0.002924]
[1721565326294,2.69860349,67049.0,67048.0,0.002924]
[1721565330629,2.70458049,67049.0,67048.0,0.002924]
[1721565331765,2.71150437,67049.0,67048.0,0.002924]
[1721565333301,2.7115043,67049.0,67048.0,0.002924]
[1721565335452,2.4132153,67049.0,67048.0,0.002924]
[1721565336423,2.41321512,67049.0,67048.0,0.002924]
[1721565338035,1.72460176,67049.0,67048.0,0.002924]
[1721565338314,1.33631276,67049.0,67048.0,0.002924]
[1721565338484,1.25148277,67049.0,67048.0,0.002924]
[1721565338711,0.44397173,67049.0,67048.0,0.083524]
[1721565338959,0.58550662,67049.0,67048.0,0.143924]
[1721565339418,0.57150662,67049.0,67048.0,0.142924]
[1721565339693,0.73026073,67049.0,67048.0,0.142924]
[1721565339925,0.73026073,67049.0,67048.0,0.141924]
[1721565340155,0.72826073,67049.0,67048.0,0.142924]
[1721565340395,0.87692931,67049.0,67048.0,0.143924]
[1721565340621,0.87379738,67049.0,67048.0,0.142924]
[1721565340873,0.88579738,67049.0,67048.0,0.143924]
[1721565342476,0.89508888,67049.0,67048.0,0.143924]
[1721565342956,0.88579738,67049.0,67048.0,0.143924]
[1721565343716,0.76042028,67049.0,67048.0,0.143924]
[1721565343935,0.80498992,67049.0,67048.0,0.143924]
[1721565344882,0.04931406,67049.0,67048.0,0.143924]
[1721565345835,0.03531406,67049.0,67048.0,0.142924]
[1721565346070,0.04631406,67049.0,67048.0,0.143924]
[1721565346547,0.04631406,67049.0,67048.0,0.142924]
[1721565346548,0.03531406,67049.0,67048.0,0.142924]
[1721565346787,0.40499719,67049.0,67048.0,0.143924]
[1721565347037,0.7481288,67049.0,67048.0,0.143924]
[1721565347501,0.4498398,67049.0,67048.0,0.143924]
[1721565347721,0.4378398,67049.0,67048.0,0.142924]
[1721565347934,0.5536217,67049.0,67048.0,0.142924]
[1721565348142,0.5426217,67049.0,67048.0,0.141924]
[1721565348589,0.5536217,67049.0,67048.0,0.142924]
[1721565348806,0.4468398,67049.0,67048.0,0.143924]
[1721565349030,0.4358398,67049.0,67048.0,0.142924]
[1721565349248,0.4468398,67049.0,67048.0,0.143924]
[1721565349975,0.4378398,67049.0,67048.0,0.142924]
[1721565350623,0.55362555,67049.0,67048.0,0.142924]
[1721565352193,0.56262555,67049.0,67048.0,0.143924]
[1721565352863,0.86091455,67049.0,67048.0,0.143924]
[1721565356965,1.15920355,67049.0,67048.0,0.143924]
[1721565357402,1.15920355,67049.0,67048.0,0.084324]
[1721565357403,1.45749255,67049.0,67048.0,0.084324]
[1721565357616,1.64779255,67049.0,67048.0,0.002924]
[1721565357860,1.72605444,67049.0,67048.0,0.001924]
[1721565358063,1.58679255,67049.0,67048.0,0.001924]
[1721565358276,2.24328155,67049.0,67048.0,0.002924]
[1721565358531,2.14428155,67049.0,67048.0,0.001924]
[1721565358772,2.22328155,67049.0,67048.0,0.000924]
[1721565358996,2.23428155,67049.0,67048.0,0.001924]
[1721565359388,2.24328155,67049.0,67048.0,0.002924]
[1721565359874,1.75499255,67049.0,67048.0,0.001924]
[1721565360088,1.66469255,67049.0,67048.0,0.001924]
[1721565360311,1.67369255,67049.0,67048.0,0.002924]
[1721565360521,1.67369255,67049.0,67048.0,0.001924]
[1721565360522,1.66269255,67049.0,67048.0,0.001924]
[1721565360950,1.76598863,67049.0,67048.0,0.002924]
[1721565361174,1.17120355,67049.0,67048.0,0.002924]
[1721565361398,1.23817337,67049.0,67048.0,0.002924]
[1721565361624,1.23817108,67049.0,67048.0,0.002924]
[1721565361831,1.10438533,67049.0,67048.0,0.001924]
[1721565362042,1.0374178,67049.0,67048.0,0.001924]
[1721565362250,1.0484178,67049.0,67048.0,0.001924]
[1721565362669,1.17640347,67049.0,67048.0,0.001924]
[1721565362878,0.4518398,67049.0,67048.0,0.063024]
[1721565365917,0.4518398,67049.0,67048.0,0.144424]
[1721565366826,0.3518398,67049.0,67048.0,0.144424]
[1721565374533,0.44684778,67049.0,67048.0,0.144424]
[1721565374734,0.74513678,67049.0,67048.0,0.144424]
[1721565375585,0.74513678,67049.0,67048.0,0.083324]
[1721565375792,0.74513678,67049.0,67048.0,0.001924]
[1721565376150,1.04342578,67049.0,67048.0,0.001924]
[1721565376363,1.12372578,67049.0,67048.0,0.001924]
[1721565377567,1.16837249,67049.0,67048.0,0.001924]
[1721565377787,1.08807249,67049.0,67048.0,0.001924]
[1721565379607,1.04342578,67049.0,67048.0,0.001924]
[1721565380425,1.11039585,67049.0,67048.0,0.001924]
[1721565380762,1.11046399,67049.0,67048.0,0.001924]
[1721565380972,1.04342578,67049.0,67048.0,0.001924]
[1721565381405,1.11046399,67049.0,67048.0,0.001924]
[1721565382453,1.45875299,67049.0,67048.0,0.001924]
[1721565382704,1.54344513,67049.0,67048.0,0.001924]
[1721565382910,1.45344513,67049.0,67048.0,0.001924]
[1721565383563,1.34171478,67049.0,67048.0,0.001924]
[1721565393384,1.43171478,67049.0,67048.0,0.001924]
[1721565395070,1.34171478,67049.0,67048.0,0.001924]
[1721565400319,1.2467068,67049.0,67048.0,0.001924]
[1721565405530,0.9484178,67049.0,67048.0,0.001924]
[1721565410492,0.3518398,67049.0,67048.0,0.078624]
[1721565410680,0.3518398,67049.0,67048.0,0.140524]
[1721565410681,0.2026958,67049.0,67048.0,0.140524]
[1721565411658,0.1886958,67049.0,67048.0,0.139524]
[1721565412599,0.1776958,67049.0,67048.0,0.139524]
[1721565412806,0.1806958,67049.0,67048.0,0.139524]
[1721565413619,0.2702281,67049.0,67048.0,0.139524]
[1721565414043,0.2822281,67049.0,67048.0,0.140524]
[1721565414664,0.2702281,67049.0,67048.0,0.139524]
[1721565414855,0.2762281,67049.0,67048.0,0.140524]
[1721565416629,0.27621879,67049.0,67048.0,0.140524]
[1721565417593,0.1866958,67049.0,67048.0,0.140524]
[1721565421210,0.25383206,67049.0,67048.0,0.140524]
[1721565421307,0.25382907,67049.0,67048.0,0.140524]
[1721565421514,0.1866958,67049.0,67048.0,0.140524]
[1721565421718,0.25382862,67049.0,67048.0,0.140524]
[1721565422126,0.25382884,67049.0,67048.0,0.140524]
[1721565422813,0.1866958,67049.0,67048.0,0.140524]
[1721565426648,0.23143865,67049.0,67048.0,0.140524]
[1721565426849,0.07705691,67049.0,67048.0,0.140524]
[1721565427064,0.03231406,67049.0,67048.0,0.140524]
[1721565429380,0.07705281,67049.0,67048.0,0.140524]
[1721565431841,0.07705182,67049.0,67048.0,0.140524]
[1721565432446,0.07705182,67049.0,67048.0,0.078624]
[1721565433824,0.03231406,67049.0,67048.0,0.001924]
[1721565434034,0.18145806,67049.0,67048.0,0.001924]
[1721565438454,0.24856959,67049.0,67048.0,0.001924]
[1721565438701,0.35338361,67049.0,67048.0,0.001924]
[1721565441491,0.58456108,67049.0,67048.0,0.001924]
[1721565441660,0.65168175,67049.0,67048.0,0.001924]
[1721565442065,0.65168177,67049.0,67048.0,0.001924]
[1721565445402,0.58456108,67049.0,67048.0,0.001924]
[1721565446042,1.03723182,67049.0,67048.0,0.001924]
[1721565446235,1.12672608,67049.0,67048.0,0.001924]
[1721565448056,1.1267556,67049.0,67048.0,0.001924]
[1721565449430,1.03723182,67049.0,67048.0,0.001924]
[1721565453367,1.14915738,67049.0,67048.0,0.001924]
[1721565453834,1.1491715,67049.0,67048.0,0.001924]
[1721565454462,1.14917544,67049.0,67048.0,0.001924]
[1721565455302,1.04436142,67049.0,67048.0,0.001924]
[1721565455512,1.04436142,67049.0,67048.0,0.145324]
[1721565457859,1.04437118,67049.0,67048.0,0.145324]
[1721565461073,0.74608154,67049.0,67048.0,0.145324]
[1721565464055,0.74608083,67049.0,67048.0,0.145324]
[1721565465624,0.74608083,67049.0,67048.0,0.081124]
[1721565465820,0.74608083,67049.0,67048.0,0.001924]
[1721565466505,1.30014401,67049.0,67048.0,0.001924]
[1721565466711,1.30014549,67049.0,67048.0,0.001924]
[1721565467535,1.18819198,67049.0,67048.0,0.001924]
[1721565468376,1.07372112,67049.0,67048.0,0.001924]
[1721565470589,0.447474,67043.0,67042.0,0.002794]
[1721565470806,0.447474,67043.0,67041.0,0.00124825]
[1721565470807,0.7458,67042.0,67041.0,0.00124825]
[1721565470969,0.90018174,67042.0,67041.0,0.00124825]
[1721565471640,1.01210367,67042.0,67041.0,0.00124825]
[1721565472146,1.01289019,67042.0,67041.0,0.00124825]
[1721565472278,1.11775793,67042.0,67041.0,0.00124825]
[1721565472501,1.005836,67042.0,67041.0,0.00124825]
[1721565473400,1.005836,67042.0,67041.0,0.00524825]
[1721565474031,0.34954236,67042.0,67041.0,0.00524825]
[1721565474255,0.260036,67042.0,67041.0,0.00524825]
[1721565474460,0.24467449,67042.0,67041.0,0.00524825]
[1721565474643,0.24467449,67042.0,67041.0,0.00724825]
[1721565475163,0.24467449,67042.0,67041.0,0.00124825]
[1721565475423,0.24867449,67042.0,67041.0,0.00124825]
[1721565475667,0.25467449,67042.0,67041.0,0.00224825]
[1721565475914,0.26288319,67042.0,67041.0,0.00224825]
[1721565476110,0.23956253,67042.0,67041.0,0.00224825]
[1721565476315,0.32904969,67042.0,67041.0,0.00224825]
[1721565477381,0.32904114,67042.0,67041.0,0.00224825]
[1721565480656,0.32901864,67042.0,67041.0,0.00224825]
[1721565481935,0.23356253,67042.0,67041.0,0.00124825]
[1721565482160,0.23956253,67042.0,67041.0,0.00224825]
[1721565482362,0.60861864,67042.0,67041.0,0.00224825]
[1721565482578,0.61916253,67042.0,67041.0,0.00224825]
[1721565482771,0.53316253,67042.0,67041.0,0.00224825]
[1721565483181,0.38956253,67042.0,67041.0,0.00224825]
[1721565483588,0.39854073,67042.0,67041.0,0.00224825]
[1721565483789,0.28635516,67042.0,67041.0,0.08444825]
[1721565484003,0.28635516,67042.0,67041.0,0.14684825]
[1721565484421,0.35342466,67042.0,67041.0,0.14684825]
[1721565484837,0.28635516,67042.0,67041.0,0.14684825]
[1721565485048,0.28235516,67042.0,67041.0,0.14684825]
[1721565485250,0.28235516,67042.0,67041.0,0.14584825]
[1721565485251,0.27635516,67042.0,67041.0,0.14584825]
[1721565485452,0.28235516,67042.0,67041.0,0.14684825]
[1721565486080,0.27635516,67042.0,67041.0,0.14584825]
[1721565486298,0.33071117,67042.0,67041.0,0.14684825]
[1721565486509,0.28235516,67042.0,67041.0,0.14684825]
[1721565487125,0.28635516,67042.0,67041.0,0.14684825]
[1721565487351,0.12797342,67042.0,67041.0,0.14684825]
[1721565487758,0.13197342,67042.0,67041.0,0.14684825]
[1721565488792,0.03197342,67042.0,67041.0,0.14684825]
[1721565489856,0.07668475,67042.0,67041.0,0.14684825]
[1721565490061,0.23106649,67042.0,67041.0,0.08444825]
[1721565490316,0.35342216,67042.0,67041.0,0.00224825]
[1721565490576,0.28635516,67042.0,67041.0,0.00224825]
[1721565492105,0.35342749,67042.0,67041.0,0.00224825]
[1721565492577,0.35342667,67042.0,67041.0,0.00224825]
[1721565493001,0.35342614,67042.0,67041.0,0.00224825]
[1721565495720,0.3534264,67042.0,67041.0,0.00224825]
[1721565497109,0.35617917,67042.0,67041.0,0.00224825]
[1721565498656,1.16905303,67042.0,67041.0,0.00224825]
[1721565498882,1.10197917,67042.0,67041.0,0.00224825]
[1721565499107,1.40029917,67042.0,67041.0,0.00224825]
[1721565503310,1.48974039,67042.0,67041.0,0.00224825]
[1721565503799,1.48974369,67042.0,67041.0,0.00224825]
[1721565504730,1.48974755,67042.0,67041.0,0.00224825]
[1721565505785,1.41992354,67042.0,67041.0,0.00224825]
[1721565507591,1.12160354,67042.0,67041.0,0.00224825]
[1721565508481,1.12162452,67042.0,67041.0,0.00224825]
[1721565508709,1.03215516,67042.0,67041.0,0.00224825]
[1721565511392,1.14399186,67042.0,67041.0,0.00224825]
[1721565511880,1.14402595,67042.0,67041.0,0.00224825]
[1721565513279,1.03215516,67042.0,67041.0,0.00224825]
[1721565517164,1.18065206,67042.0,67041.0,0.00224825]
[1721565520527,1.03215516,67042.0,67041.0,0.00224825]
[1721565525358,1.17225516,67042.0,67041.0,0.00224825]
[1721565525573,1.1815468,67042.0,67041.0,0.00224825]
[1721565525772,1.3215468,67042.0,67041.0,0.00224825]
[1721565525980,1.6198668,67042.0,67041.0,0.00224825]
[1721565526191,1.5298668,67042.0,67041.0,0.00224825]
[1721565526395,1.82421637,67042.0,67041.0,0.00224825]
[1721565527025,1.82421734,67042.0,67041.0,0.00224825]
[1721565530589,0.79581,67041.0,67040.0,0.000924]
[1721565530839,0.79581,67041.0,67035.0,0.000924]
[1721565530840,0.63762,67036.0,67035.0,0.000924]
[1721565531004,1.63798835,67036.0,67035.0,0.000924]
[1721565531210,1.77224854,67036.0,67035.0,0.000924]
[1721565531422,1.7722516,67036.0,67035.0,0.000924]
[1721565531629,1.7722205,67036.0,67035.0,0.000924]
[1721565531940,1.62869574,67036.0,67035.0,0.000924]
[1721565532060,1.5879889,67036.0,67035.0,0.000924]
[1721565532275,1.4979889,67036.0,67035.0,0.000924]
[1721565532520,1.48869574,67036.0,67035.0,0.000924]
[1721565532753,1.34859574,67036.0,67035.0,0.004924]
[1721565532982,1.00024874,67036.0,67035.0,0.086724]
[1721565533960,1.01168501,67036.0,67035.0,0.086724]
[1721565534594,1.01246546,67036.0,67035.0,0.086724]
[1721565539065,1.12426399,67036.0,67035.0,0.086724]
[1721565539476,1.01246546,67036.0,67035.0,0.086724]
[1721565540067,1.12426399,67036.0,67035.0,0.086724]
[1721565540723,1.12426399,67036.0,67035.0,0.004924]
[1721565540947,1.10190049,67036.0,67035.0,0.004924]
[1721565541396,1.01246546,67036.0,67035.0,0.004924]
[1721565541604,1.10190029,67036.0,67035.0,0.004924]
[1721565542203,1.11604409,67036.0,67035.0,0.004924]
[1721565542344,1.01246546,67036.0,67035.0,0.004924]
[1721565542821,1.10190054,67036.0,67035.0,0.004924]
[1721565543024,1.01246546,67036.0,67035.0,0.004924]
[1721565543703,1.10190007,67036.0,67035.0,0.004924]